bitfinex-derivatives/quotes_BTCF0:USTF0_20251028
["timestamp","ask_amount","ask_price","bid_price","bid_amount"]
[1761683252291,0.43536937,112630.0,112620.0,0.20082033]
[1761683252489,0.04683921,112630.0,112620.0,0.20082033]
[1761683253092,0.43536937,112630.0,112620.0,0.20078033]
[1761683253295,0.43536937,112630.0,112620.0,0.06026033]
[1761683253592,0.43536937,112630.0,112620.0,0.20078033]
[1761683254302,0.43536937,112630.0,112620.0,0.00209033]
[1761683254498,0.01698,112610.0,112600.0,0.0571]
[1761683254700,0.00849,112600.0,112590.0,0.14808]
[1761683254897,0.00849,112610.0,112600.0,0.0571]
[1761683255400,0.38013486,112610.0,112600.0,0.0571]
[1761683255601,0.41124111,112610.0,112600.0,0.0571]
[1761683256000,0.41426111,112610.0,112580.0,0.05802]
[1761683256202,0.37155016,112590.0,112580.0,0.1985]
[1761683256800,0.01698,112590.0,112580.0,0.1985]
[1761683257196,0.38853016,112590.0,112580.0,0.05802]
[1761683257396,0.41311937,112590.0,112580.0,0.2255]
[1761683257596,0.41311937,112590.0,112580.0,0.08502]
[1761683257798,0.41311937,112590.0,112580.0,0.2255]
[1761683257996,0.41311937,112590.0,112580.0,0.2285]
[1761683258201,0.39053016,112590.0,112580.0,0.2285]
[1761683258397,0.002,112590.0,112580.0,0.2285]
[1761683258600,0.39601994,112590.0,112580.0,0.2255]
[1761683258799,0.39601994,112590.0,112580.0,0.2285]
[1761683259408,0.39601994,112590.0,112580.0,0.2255]
[1761683259711,0.39601994,112590.0,112580.0,0.2285]
[1761683259712,0.02446978,112590.0,112580.0,0.2285]
[1761683259896,0.02446978,112590.0,112580.0,0.2015]
[1761683260409,0.1405747,112610.0,112600.0,0.0571]
[1761683260410,0.37164486,112610.0,112600.0,0.0571]
[1761683260615,0.40259603,112610.0,112600.0,0.19758]
[1761683261104,0.41108603,112610.0,112600.0,0.19758]
[1761683261304,0.38862486,112610.0,112600.0,0.19758]
[1761683261498,0.39662486,112610.0,112600.0,0.19958]
[1761683263513,0.39662486,112610.0,112600.0,0.19954]
[1761683265212,0.39662486,112610.0,112600.0,0.0591]
[1761683265411,0.41907711,112610.0,112600.0,0.002]
[1761683266408,0.55951711,112610.0,112600.0,0.002]
[1761683266606,0.55951711,112610.0,112600.0,0.03801]
[1761683266808,0.18796695,112610.0,112600.0,0.03801]
[1761683267006,0.55951711,112610.0,112600.0,0.03801]
[1761683267514,0.55951711,112610.0,112600.0,0.0591]
[1761683269012,0.41907711,112610.0,112600.0,0.0591]
[1761683270014,0.41907711,112610.0,112600.0,0.03801]
[1761683270207,0.41907711,112610.0,112600.0,0.002]
[1761683271915,0.32505379,112610.0,112600.0,0.01477]
[1761683272818,0.32505379,112610.0,112600.0,0.03801]
[1761683273927,0.32505379,112610.0,112600.0,0.0591]
[1761683274515,0.32505379,112610.0,112600.0,0.002]
[1761683274712,0.00849,112570.0,112560.0,0.05802]
[1761683275018,0.29450684,112570.0,112560.0,0.07133745]
[1761683275216,0.28592061,112570.0,112560.0,0.07133745]
[1761683275518,0.29543107,112570.0,112560.0,0.07133745]
[1761683275822,0.29543107,112570.0,112560.0,0.05024745]
[1761683276216,0.29943107,112570.0,112560.0,0.08424745]
[1761683276417,0.29943107,112570.0,112560.0,0.10533745]
[1761683276926,0.02190423,112570.0,112560.0,0.10833745]
[1761683277126,0.29943107,112570.0,112560.0,0.10833745]
[1761683278630,0.29111682,112570.0,112560.0,0.10833745]
[1761683279929,0.36175027,112570.0,112560.0,0.10833745]
[1761683280125,0.29111682,112570.0,112560.0,0.10833745]
[1761683281030,0.00407952,112570.0,112560.0,0.10833745]
[1761683281218,0.28160636,112570.0,112560.0,0.10833745]
[1761683281422,0.29110594,112570.0,112560.0,0.10833745]
[1761683282030,0.29110594,112570.0,112560.0,0.24865745]
[1761683283532,0.00407952,112570.0,112560.0,0.25133745]
[1761683283730,0.00407952,112570.0,112560.0,0.93750095]
[1761683284027,0.27752684,112590.0,112580.0,0.06]
[1761683284235,0.29964933,112590.0,112580.0,0.07331745]
[1761683284825,0.29964933,112590.0,112580.0,0.06]
[1761683284826,0.28723677,112590.0,112580.0,0.06]
[1761683285028,0.37961165,112590.0,112580.0,0.04976595]
[1761683285331,0.38161165,112590.0,112580.0,0.03252595]
[1761683285532,0.52189165,112590.0,112580.0,0.01907595]
[1761683285723,0.87189165,112590.0,112580.0,0.01907595]
[1761683285921,0.87457165,112590.0,112560.0,0.06246]
[1761683286229,0.87457165,112590.0,112560.0,0.05946]
[1761683286230,0.27752684,112570.0,112560.0,0.05946]
[1761683286824,0.22283106,112590.0,112560.0,0.05946]
[1761683287019,0.22283106,112590.0,112560.0,0.06246]
[1761683287020,0.27752684,112570.0,112560.0,0.06246]
[1761683287723,0.27752684,112570.0,112560.0,0.05946]
[1761683287925,0.28152684,112570.0,112560.0,0.07646]
[1761683289222,0.28152684,112570.0,112560.0,0.05315]
[1761683289432,0.28152684,112570.0,112560.0,0.07613]
[1761683290938,0.004,112570.0,112560.0,0.07613]
[1761683291240,0.28152684,112570.0,112560.0,0.07613]
[1761683293739,0.004,112570.0,112560.0,0.07613]
[1761683294131,0.28152684,112570.0,112560.0,0.07613]
[1761683294333,0.004,112570.0,112560.0,0.07613]
[1761683294537,0.28152684,112570.0,112560.0,0.07613]
[1761683294736,0.004,112570.0,112560.0,0.07613]
[1761683295739,0.004,112570.0,112560.0,0.07881]
[1761683296232,0.004,112570.0,112560.0,0.07613]
[1761683296427,0.004,112570.0,112560.0,0.07881]
[1761683296634,0.004,112570.0,112560.0,0.1676539]
[1761683297542,0.004,112570.0,112560.0,0.1649739]
[1761683298041,0.28723677,112590.0,112580.0,0.05832]
[1761683299542,0.28923677,112590.0,112580.0,0.06232]
[1761683301337,0.002,112590.0,112580.0,0.06232]
[1761683301650,0.002,112590.0,112550.0,0.08893749]
[1761683301651,0.05116,112590.0,112550.0,0.06351787]
[1761683301839,0.27752684,112560.0,112550.0,8.559e-05]
[1761683302241,0.27752684,112560.0,112540.0,0.05832]
[1761683302242,0.3486782,112560.0,112540.0,0.05832]
[1761683302541,0.41764684,112550.0,112540.0,0.05832]
[1761683302850,0.14012,112550.0,112540.0,0.05832]
[1761683303142,0.41764684,112550.0,112540.0,0.05832]
[1761683303350,0.41771676,112550.0,112540.0,0.05832]
[1761683303541,0.14018992,112550.0,112540.0,0.05832]
[1761683303742,0.41771676,112550.0,112540.0,0.06132]
[1761683304041,6.992e-05,112550.0,112540.0,0.06132]
[1761683304643,6.992e-05,112550.0,112540.0,0.66132]
[1761683304839,0.28259676,112550.0,112540.0,0.07532]
[1761683305047,0.28259676,112550.0,112540.0,0.2124]
[1761683305349,0.00506992,112550.0,112540.0,0.2154]
[1761683306340,0.00506992,112550.0,112540.0,0.8154]
[1761683310445,0.00975303,112590.0,112580.0,0.05832]
[1761683310753,0.02334908,112620.0,112610.0,0.04455]
[1761683311048,0.3187642,112620.0,112600.0,0.19836]
[1761683311353,0.27752684,112610.0,112600.0,0.05832]
[1761683312542,0.27852684,112610.0,112600.0,0.05832]
[1761683312743,0.31120684,112610.0,112580.0,1.51377]
[1761683312949,0.27752684,112590.0,112580.0,1.65381]
[1761683313146,0.27752684,112590.0,112580.0,1.51377]
[1761683313342,0.27752684,112590.0,112580.0,0.19836]
[1761683314048,0.27752684,112590.0,112580.0,0.03534]
[1761683314243,0.30020684,112590.0,112560.0,0.05818]
[1761683314449,0.27752684,112570.0,112560.0,0.19818]
[1761683314755,0.27752684,112570.0,112560.0,0.05818]
[1761683315551,0.01268,112570.0,112510.0,0.07963618]
[1761683315755,0.27752684,112550.0,112500.0,0.01364]
[1761683315946,0.00268,112540.0,112520.0,0.01364]
[1761683316146,0.00268,112540.0,112500.0,0.14416]
[1761683316147,0.0888835,112510.0,112500.0,0.05805]
[1761683316353,0.0888835,112510.0,112500.0,0.19805]
[1761683316651,0.0963535,112510.0,112500.0,0.19805]
[1761683317456,0.38403034,112510.0,112500.0,0.03483]
[1761683317759,0.39087224,112510.0,112500.0,0.19801]
[1761683318149,0.1133454,112510.0,112500.0,0.19801]
[1761683318548,0.39487224,112510.0,112500.0,0.23201]
[1761683318751,0.39487224,112510.0,112500.0,0.23701]
[1761683318951,0.39487224,112510.0,112480.0,0.025867]
[1761683318952,0.01494,112490.0,112480.0,0.047057]
[1761683319255,0.01494,112490.0,112480.0,0.210237]
[1761683319753,0.00747,112490.0,112480.0,0.025867]
[1761683320060,0.01494,112500.0,112490.0,0.04441]
[1761683320263,0.0284619,112510.0,112500.0,0.05805]
[1761683320558,0.0135219,112510.0,112500.0,0.19801]
[1761683321256,0.02454462,112520.0,112510.0,0.04441]
[1761683321452,0.00747,112530.0,112520.0,0.05805]
[1761683321757,0.53838235,112560.0,112550.0,0.02119]
[1761683321959,0.35802806,112560.0,112550.0,0.17941]
[1761683322257,0.02467898,112560.0,112550.0,0.17941]
[1761683322449,0.02461782,112570.0,112560.0,0.05805]
[1761683323444,0.30214466,112570.0,112560.0,0.05805]
[1761683323756,0.30214466,112570.0,112560.0,0.17479]
[1761683323956,0.01494,112560.0,112550.0,0.002]
[1761683324156,0.29614684,112560.0,112550.0,0.002]
[1761683324752,0.29514684,112560.0,112550.0,0.002]
[1761683324959,0.29246684,112560.0,112550.0,0.002]
[1761683325167,0.01494,112560.0,112550.0,0.04441]
[1761683325460,0.01494,112550.0,112540.0,0.05805]
[1761683325662,0.01494,112540.0,112520.0,0.01364]
[1761683325865,0.00368,112560.0,112530.0,0.18437]
[1761683326155,0.29246684,112550.0,112540.0,0.03483]
[1761683326357,0.29246684,112550.0,112540.0,0.19801]
[1761683326553,0.01494,112550.0,112540.0,0.19801]
[1761683326761,0.29246684,112550.0,112540.0,0.19797]
[1761683327061,0.29346684,112550.0,112540.0,0.19797]
[1761683327261,0.01594,112550.0,112540.0,0.19797]
[1761683327557,0.01594,112550.0,112540.0,0.05805]
[1761683327760,0.29346684,112550.0,112540.0,0.19797]
[1761683328060,0.01494,112530.0,112520.0,0.01364]
[1761683328245,0.29246684,112530.0,112520.0,0.19797]
[1761683329250,0.29246684,112530.0,112520.0,0.19897767]
[1761683329752,0.29246684,112530.0,112520.0,0.19948155]
[1761683330262,0.01494,112530.0,112520.0,0.20248155]
[1761683330562,0.29246684,112540.0,112530.0,0.04441]
[1761683330751,0.00747,112550.0,112540.0,0.05805]
[1761683330953,0.29246684,112560.0,112550.0,0.04441]
[1761683331257,0.00967782,112570.0,112560.0,0.05805]
[1761683331258,0.02461782,112570.0,112560.0,0.05805]
[1761683331460,0.29246684,112570.0,112560.0,0.19797]
[1761683331760,0.29246684,112570.0,112560.0,0.19948155]
[1761683332256,0.30191074,112570.0,112560.0,0.19948155]
[1761683332451,0.30191074,112570.0,112560.0,0.20148155]
[1761683332652,0.33291074,112570.0,112560.0,0.20148155]
[1761683332858,0.37291074,112570.0,112560.0,0.00351155]
[1761683333055,0.35559074,112570.0,112560.0,0.00351155]
[1761683333356,0.6999439,112570.0,112560.0,0.00351155]
[1761683333564,0.29246684,112550.0,112540.0,0.15352]
[1761683333765,0.29246684,112550.0,112540.0,0.01364]
[1761683333766,0.38746191,112550.0,112540.0,0.01364]
[1761683334063,0.38746191,112550.0,112540.0,0.19793]
[1761683334652,0.38846191,112550.0,112520.0,0.01364]
[1761683334857,0.01494,112530.0,112520.0,0.05805]
[1761683335056,0.01494,112530.0,112520.0,0.19793]
[1761683335955,0.01494,112530.0,112520.0,0.05805]
[1761683336156,0.01494,112530.0,112520.0,0.19793]
[1761683336363,0.01494,112530.0,112520.0,0.19993]
[1761683337053,0.01494,112530.0,112520.0,0.20093]
[1761683337657,0.38746191,112530.0,112520.0,0.20093]
[1761683338055,0.38846191,112530.0,112520.0,0.20093]
[1761683338756,0.01594,112530.0,112520.0,0.20093]
[1761683339261,0.001,112530.0,112520.0,0.20093]
[1761683339464,0.01594,112530.0,112520.0,0.20093]
[1761683340356,0.001,112530.0,112520.0,0.20093]
[1761683340551,0.00847,112530.0,112520.0,0.20089]
[1761683340762,0.001,112530.0,112520.0,0.06105]
[1761683340963,0.001,112530.0,112520.0,0.20089]
[1761683341158,0.01594,112530.0,112520.0,0.20089]
[1761683341360,0.01594,112530.0,112520.0,0.06105]
[1761683341563,0.38846191,112530.0,112520.0,0.20089]
[1761683341762,0.01594,112530.0,112520.0,0.20089]
[1761683341963,0.38846191,112530.0,112520.0,0.06105]
[1761683342163,0.38846191,112530.0,112520.0,0.20089]
[1761683343165,0.001,112530.0,112520.0,0.20089]
[1761683343571,0.00847,112530.0,112520.0,0.20089]
[1761683346272,0.00847,112530.0,112520.0,0.20085]
[1761683347067,0.001,112530.0,112520.0,0.20085]
[1761683347263,0.03279298,112570.0,112520.0,0.80353]
[1761683347472,0.01494,112560.0,112550.0,0.0441]
[1761683347774,0.58309169,112570.0,112560.0,0.057]
[1761683347964,0.58309203,112570.0,112560.0,0.057]
[1761683348162,0.03248104,112570.0,112560.0,0.057]
[1761683348368,0.02303714,112570.0,112560.0,0.1968]
[1761683348961,0.02334908,112590.0,112580.0,0.05901]
[1761683349174,0.02334908,112610.0,112600.0,0.05901]
[1761683349366,0.02334908,112610.0,112600.0,0.19881]
[1761683351172,0.46800099,112610.0,112600.0,0.20077]
[1761683351669,0.09647908,112610.0,112600.0,0.20077]
[1761683351874,0.05334908,112610.0,112600.0,0.20077]
[1761683354172,0.03,112610.0,112600.0,0.20345]
[1761683354368,0.05448262,112620.0,112610.0,0.04505]
[1761683354369,0.02334908,112620.0,112610.0,0.04505]
[1761683354573,0.02334908,112620.0,112610.0,0.04773]
[1761683354877,0.02334908,112620.0,112610.0,0.04505]
[1761683355072,0.02334908,112620.0,112610.0,0.04773]
[1761683355269,0.00976979,112640.0,112630.0,0.04505]
[1761683355470,0.44522125,112650.0,112630.0,0.18473]
[1761683355665,0.48835125,112650.0,112640.0,0.04505]
[1761683356068,0.48835125,112650.0,112630.0,0.13968]
[1761683356269,0.04313,112640.0,112630.0,0.18473]
[1761683356468,0.04313,112640.0,112630.0,0.04505]
[1761683356669,0.04313,112640.0,112630.0,0.18473]
[1761683356869,0.42530988,112640.0,112630.0,0.18473]
[1761683357171,0.04313,112650.0,112640.0,0.05901]
[1761683357371,0.06913,112650.0,112640.0,0.05901]
[1761683357775,0.02181,112650.0,112640.0,0.05901]
[1761683357972,0.05263315,112650.0,112640.0,0.05901]
[1761683358169,0.42515506,112650.0,112640.0,0.05901]
[1761683358569,0.05263315,112650.0,112640.0,0.05901]
[1761683358768,0.05463315,112650.0,112640.0,0.05901]
[1761683359670,0.06163315,112650.0,112640.0,0.05901]
[1761683360579,0.43415506,112650.0,112640.0,0.05901]
[1761683360976,0.43415506,112650.0,112640.0,0.19861]
[1761683361175,0.43415506,112650.0,112640.0,0.05901]
[1761683361475,0.43415506,112650.0,112640.0,0.19861]
[1761683363777,0.43415506,112650.0,112640.0,1.19861]
[1761683364681,0.45415506,112650.0,112640.0,1.0]
[1761683364881,0.56415506,112650.0,112640.0,1.0]
[1761683365571,0.46415506,112650.0,112640.0,1.0]
[1761683365778,0.43415506,112650.0,112640.0,1.0]
[1761683367072,0.43415506,112650.0,112640.0,1.01396]
[1761683367579,0.06163315,112650.0,112640.0,1.01396]
[1761683368677,0.06163315,112650.0,112640.0,1.0]
[1761683368979,0.43415506,112650.0,112640.0,1.0]
[1761683369781,0.43415506,112650.0,112640.0,1.13952]
[1761683370283,0.43415506,112650.0,112640.0,1.0]
[1761683370482,0.43415506,112650.0,112640.0,1.13948]
[1761683371282,0.43415506,112650.0,112640.0,1.0]
[1761683371589,0.43415506,112650.0,112640.0,1.13948]
[1761683371978,0.43415506,112650.0,112640.0,1.15344]
[1761683376000,0.01850315,112650.0,112640.0,1.15344]
[1761683377507,0.01850315,112650.0,112640.0,1.01396]
[1761683377700,0.01850315,112650.0,112640.0,1.1534]
[1761683378204,0.43528506,112650.0,112640.0,1.0]
[1761683378506,0.45796421,112650.0,112640.0,1.1394]
[1761683378703,0.49796421,112650.0,112640.0,1.0]
[1761683378904,0.47796421,112650.0,112640.0,1.0]
[1761683379097,0.49796421,112650.0,112640.0,1.0]
[1761683379305,0.47796421,112650.0,112640.0,1.0]
[1761683380192,0.45796421,112650.0,112640.0,1.01265]
[1761683380802,0.45796421,112650.0,112640.0,1.0]
[1761683381005,0.55796421,112650.0,112640.0,1.0]
[1761683381207,0.48131329,112650.0,112640.0,1.0]
[1761683382805,0.51244683,112650.0,112640.0,1.0]
[1761683383000,0.48131329,112650.0,112640.0,1.0]
[1761683383308,0.48909775,112650.0,112640.0,1.01265]
[1761683385003,0.48909775,112650.0,112640.0,1.0]
[1761683385309,0.11657584,112650.0,112640.0,1.01265]
[1761683385607,0.06453605,112650.0,112640.0,1.01265]
[1761683385902,0.48131796,112650.0,112640.0,1.01265]
[1761683386108,0.48131796,112650.0,112640.0,1.15197]
[1761683387005,0.5524515,112650.0,112640.0,1.13932]
[1761683387198,0.6324515,112650.0,112640.0,1.0]
[1761683387903,0.6744515,112650.0,112640.0,1.0]
[1761683388110,0.6717715,112650.0,112640.0,1.0]
[1761683388304,0.64063796,112650.0,112640.0,1.0]
[1761683388509,0.67109775,112650.0,112640.0,1.0]
[1761683388805,1.43109775,112650.0,112640.0,0.9187127]
[1761683389311,1.44666452,112650.0,112640.0,0.9187127]
[1761683389712,1.49996421,112650.0,112640.0,0.9187127]
[1761683390104,1.54666977,112650.0,112640.0,0.9187127]
[1761683390306,1.49996421,112650.0,112640.0,0.9187127]
[1761683390505,1.5466641,112650.0,112640.0,0.9187127]
[1761683391112,1.56223129,112650.0,112640.0,0.9187127]
[1761683393197,1.49996421,112650.0,112640.0,0.9187127]
[1761683393608,1.56223129,112650.0,112640.0,0.9187127]
[1761683394010,1.57223129,112650.0,112600.0,0.01396]
[1761683394220,0.44010871,112610.0,112600.0,0.05737]
[1761683394414,0.48278786,112610.0,112600.0,0.04341]
[1761683394602,0.53389026,112610.0,112600.0,0.04341]
[1761683394802,0.03559604,112590.0,112580.0,0.05737]
[1761683395008,0.58712431,112610.0,112600.0,0.02125]
[1761683395306,0.22954134,112610.0,112600.0,0.06915951]
[1761683395613,0.09030134,112610.0,112600.0,0.05606]
[1761683395806,0.34946418,112610.0,112600.0,0.05606]
[1761683396011,0.32672722,112610.0,112600.0,0.05606]
[1761683396208,0.04426,112590.0,112580.0,0.03481]
[1761683396513,0.46096722,112600.0,112590.0,0.04341]
[1761683396716,0.1835,112600.0,112590.0,0.04341]
[1761683398205,0.19659,112600.0,112590.0,0.04341]
[1761683398405,0.4967735,112600.0,112590.0,0.02125]
[1761683398610,0.26260312,112600.0,112590.0,0.04341]
[1761683398815,0.23151312,112600.0,112590.0,0.04341]
[1761683399015,0.04801312,112600.0,112590.0,0.04341]
[1761683399211,0.05501312,112600.0,112590.0,0.04341]
[1761683399910,0.009,112600.0,112590.0,0.04341]
[1761683400118,0.002,112600.0,112590.0,0.04341]
[1761683400318,0.009,112600.0,112590.0,0.04341]
[1761683400516,0.008,112600.0,112590.0,0.04341]
[1761683400712,0.04526,112600.0,112590.0,0.04341]
[1761683400913,0.11135,112600.0,112590.0,0.04341]
[1761683401110,0.006,112600.0,112590.0,0.04341]
[1761683401613,0.006,112600.0,112590.0,0.32087722]
[1761683402013,0.13924,112620.0,112610.0,0.04341]
[1761683402212,0.1835,112620.0,112610.0,0.04341]
[1761683402413,0.13924,112620.0,112610.0,0.04341]
[1761683402717,0.48454722,112620.0,112610.0,0.04341]
[1761683402911,0.04426,112610.0,112600.0,0.04341]
[1761683403112,0.04426,112610.0,112580.0,0.05606]
[1761683403113,0.04426,112590.0,112580.0,0.05606]
[1761683403313,0.04426,112590.0,112580.0,0.04341]
[1761683403314,0.46092722,112590.0,112580.0,0.04341]
[1761683403618,0.48092722,112590.0,112550.0,0.1392]
[1761683403919,0.48092722,112590.0,112560.0,0.05575028]
[1761683403920,0.04552,112570.0,112560.0,0.05575028]
[1761683404111,0.76712,112570.0,112560.0,0.05575028]
[1761683404716,1.04458722,112570.0,112560.0,0.05575028]
[1761683404914,0.76712,112570.0,112560.0,0.05575028]
[1761683405110,1.04458722,112570.0,112560.0,0.04310028]
[1761683405312,1.18478722,112570.0,112560.0,0.05585028]
[1761683405723,1.19408643,112570.0,112560.0,0.05585028]
[1761683406313,0.91661921,112570.0,112560.0,0.05685028]
[1761683406713,1.19408643,112570.0,112560.0,0.05685028]
[1761683407720,1.21408643,112570.0,112560.0,0.05685028]
[1761683408108,1.19408643,112570.0,112560.0,0.05685028]
[1761683408530,0.91661921,112570.0,112560.0,0.05685028]
[1761683408711,1.19408643,112570.0,112560.0,0.04410028]
[1761683408914,1.19408643,112570.0,112560.0,0.05795028]
[1761683410011,0.91661921,112570.0,112560.0,0.05795028]
[1761683410415,1.19408643,112570.0,112560.0,0.05795028]
[1761683410611,1.19408643,112570.0,112560.0,0.04410028]
[1761683410821,1.19408643,112570.0,112560.0,0.05795028]
[1761683411022,1.26378199,112570.0,112560.0,0.05795028]
[1761683411519,0.98631477,112570.0,112560.0,0.05795028]
[1761683411721,1.26378199,112570.0,112560.0,0.02235028]
[1761683412022,1.01631477,112570.0,112560.0,0.04358028]
[1761683412211,1.31378199,112570.0,112560.0,0.00110028]
[1761683412412,1.01631477,112570.0,112560.0,0.04358028]
[1761683412708,1.01631477,112570.0,112560.0,0.00110028]
[1761683412709,1.29378199,112570.0,112560.0,0.00110028]
[1761683412915,1.83378199,112570.0,112560.0,0.00110028]
[1761683413321,1.51378199,112570.0,112560.0,0.00110028]
[1761683413520,1.54378199,112570.0,112560.0,0.00110028]
[1761683414319,0.02261,112530.0,112520.0,0.0339]
[1761683414512,0.38341,112530.0,112520.0,0.05513]
[1761683414815,0.3608,112550.0,112540.0,0.02125]
[1761683415022,0.3608,112550.0,112540.0,0.33379722]
[1761683415321,0.3608,112550.0,112540.0,0.93647722]
[1761683415506,0.3608,112550.0,112540.0,0.33647722]
[1761683415712,2.58e-06,112550.0,112540.0,0.29399722]
[1761683415913,0.3608,112560.0,112550.0,0.04248]
[1761683416115,0.3608,112560.0,112550.0,0.46164722]
[1761683416520,0.3608,112560.0,112550.0,0.46265352]
[1761683416721,0.3608,112560.0,112550.0,0.0433863]
[1761683417016,0.3608,112560.0,112550.0,0.1825063]
[1761683417209,0.38341,112560.0,112550.0,0.1825063]
[1761683417411,0.3608,112560.0,112550.0,0.0433863]
[1761683417813,0.3608,112560.0,112550.0,0.46265352]
[1761683418120,0.3608,112560.0,112550.0,1.06465352]
[1761683418422,0.3608,112560.0,112550.0,2.56465352]
[1761683418816,0.3608,112560.0,112550.0,1.96465352]
[1761683419014,0.3608,112560.0,112550.0,1.6871863]
[1761683419215,0.3608,112570.0,112560.0,0.05626]
[1761683419421,0.3608,112570.0,112560.0,0.33640722]
[1761683419617,0.3608,112570.0,112560.0,0.33741352]
[1761683419819,0.3608,112570.0,112560.0,0.7963863]
[1761683420115,0.40511,112570.0,112560.0,0.6572663]
[1761683420422,0.40611,112570.0,112560.0,0.6572663]
[1761683420619,0.40611,112570.0,112560.0,0.7963463]
[1761683421131,0.001,112570.0,112560.0,0.6599463]
[1761683421418,0.001,112570.0,112560.0,0.7963463]
[1761683421617,0.001,112570.0,112560.0,0.7990263]
[1761683421828,0.001,112570.0,112560.0,1.07649352]
[1761683422118,0.001,112570.0,112560.0,0.47649352]
[1761683422323,0.001,112570.0,112560.0,0.84672649]
[1761683422719,0.001,112570.0,112560.0,0.93557019]
[1761683422927,0.001,112570.0,112560.0,0.84672649]
[1761683423228,0.001,112570.0,112560.0,0.83729352]
[1761683423630,0.001,112570.0,112560.0,0.92613732]
[1761683424124,0.001,112570.0,112560.0,1.52613732]
[1761683424830,0.3608,112590.0,112580.0,0.05413]
[1761683425025,0.38349078,112590.0,112580.0,0.47331722]
[1761683425529,0.41484964,112610.0,112600.0,0.05513]
[1761683425824,0.43599551,112610.0,112600.0,0.19417]
[1761683426126,0.05420484,112610.0,112600.0,0.33527722]
[1761683426331,0.02331933,112610.0,112600.0,0.47163722]
[1761683426626,0.02331933,112610.0,112600.0,0.47532352]
[1761683426929,0.45931484,112610.0,112600.0,0.1825263]
[1761683427222,0.42842933,112610.0,112600.0,0.1825263]
[1761683427413,0.38411933,112610.0,112600.0,0.47264352]
[1761683427614,0.40672933,112610.0,112600.0,0.1951763]
[1761683427816,0.43042933,112610.0,112600.0,0.0434863]
[1761683428019,0.70789655,112610.0,112600.0,0.0222563]
[1761683428229,0.40711,112610.0,112600.0,0.1612563]
[1761683428424,0.40711,112610.0,112600.0,0.0222563]
[1761683428817,0.38541,112610.0,112600.0,0.0561363]
[1761683429728,0.40711,112610.0,112600.0,0.0561363]
[1761683429933,0.40711,112610.0,112600.0,0.0434863]
[1761683430917,0.40711,112610.0,112600.0,0.0010063]
[1761683431122,0.68457722,112610.0,112600.0,0.0010063]
[1761683431327,0.40711,112610.0,112600.0,0.0434863]
[1761683431929,0.40711,112610.0,112600.0,0.0561363]
[1761683432726,0.38541,112610.0,112600.0,0.0561363]
[1761683432926,0.3628,112610.0,112600.0,0.33360352]
[1761683433127,0.3628,112610.0,112600.0,0.0561363]
[1761683433837,0.3628,112610.0,112600.0,0.33360352]
[1761683434032,0.40709,112610.0,112600.0,0.0561363]
[1761683434429,0.3628,112610.0,112600.0,0.0561363]
[1761683434627,0.3628,112610.0,112600.0,0.33628352]
[1761683435332,0.3628,112610.0,112600.0,0.0561363]
[1761683435540,0.3628,112610.0,112600.0,0.33360352]
[1761683435929,0.002,112610.0,112600.0,0.33360352]
[1761683436226,0.407,112610.0,112600.0,0.1824063]
[1761683436626,0.407,112610.0,112600.0,0.0434863]
[1761683436826,0.407,112610.0,112600.0,0.1824063]
[1761683437029,0.407,112610.0,112600.0,0.1950563]
[1761683437337,0.407,112610.0,112600.0,0.47252352]
[1761683437531,0.38532,112610.0,112600.0,0.47252352]
[1761683437731,0.407,112610.0,112600.0,0.47252352]
[1761683439039,0.38532,112610.0,112600.0,0.47520352]
[1761683439440,0.3628,112610.0,112600.0,0.47252352]
[1761683439643,0.3628,112610.0,112600.0,0.47520352]
[1761683439934,0.38532,112610.0,112600.0,0.47252352]
[1761683440643,0.002,112610.0,112600.0,0.47520352]
[1761683441232,0.0462,112610.0,112600.0,0.47252352]
[1761683441433,0.002,112610.0,112600.0,0.47252352]
[1761683441936,0.0006003,112610.0,112600.0,1.07520352]
[1761683442243,0.0006003,112610.0,112600.0,1.07252352]
[1761683442942,0.0006003,112610.0,112600.0,0.33360352]
[1761683443145,0.0006003,112610.0,112600.0,0.47244352]
[1761683443341,0.0006003,112610.0,112600.0,0.47512352]
[1761683444446,0.0006003,112610.0,112600.0,0.47244352]
[1761683445843,0.0231203,112610.0,112600.0,0.47244352]
[1761683446043,0.0006003,112610.0,112600.0,0.47512352]
[1761683446243,0.0006003,112610.0,112600.0,1.07512352]
[1761683446843,0.0006003,112610.0,112600.0,1.07244352]
[1761683447548,0.0006003,112610.0,112600.0,0.33360352]
[1761683447847,0.0448003,112610.0,112600.0,0.47240352]
[1761683448947,0.0448003,112610.0,112600.0,0.45975352]
[1761683449457,0.0448003,112610.0,112600.0,0.47240352]
[1761683449752,0.4056003,112610.0,112600.0,0.33360352]
[1761683450047,0.0448003,112610.0,112600.0,0.47240352]
[1761683450633,0.0006003,112610.0,112600.0,0.47240352]
[1761683450842,0.0006003,112610.0,112600.0,0.47508352]
[1761683451049,0.0006003,112610.0,112600.0,0.47240352]
[1761683452249,0.0006003,112610.0,112600.0,0.56121582]
[1761683452449,0.0006003,112610.0,112600.0,0.47240352]
[1761683453041,0.0006003,112610.0,112600.0,0.56121592]
[1761683453265,0.3608,112630.0,112610.0,0.0436]
[1761683453452,0.38332,112630.0,112620.0,0.47340722]
[1761683453646,0.3608,112640.0,112630.0,0.0436]
[1761683453953,0.3608,112640.0,112630.0,0.32106722]
[1761683454751,0.3608,112640.0,112630.0,0.32207352]
[1761683455251,0.3608,112640.0,112630.0,0.0446063]
[1761683455447,0.41811,112640.0,112630.0,0.32207352]
[1761683455852,0.41811,112640.0,112630.0,0.0446063]
[1761683456247,0.41811,112640.0,112630.0,0.0010063]
[1761683456449,0.42111,112640.0,112630.0,0.1397263]
[1761683456653,0.42111,112640.0,112630.0,0.0010063]
[1761683456847,0.42111,112640.0,112630.0,0.0446063]
[1761683457252,0.42111,112640.0,112630.0,0.1832863]
[1761683457548,0.408,112640.0,112630.0,0.1832863]
[1761683457749,0.42111,112640.0,112630.0,0.1832863]
[1761683458840,0.42111,112640.0,112630.0,0.0446063]
[1761683459046,0.42111,112640.0,112630.0,0.1832863]
[1761683459450,0.3638,112640.0,112630.0,0.1832863]
[1761683459657,0.3638,112640.0,112630.0,0.55504496]